Cogmind - Beta 15 @@@ ROGUE MODE // 2025.05.23 @ 20:35:33 // Winter2019/RPGLIKE Player: ASS BUSTER Result: Destroyed by Lightning with EMDS Performance ------------- Evolutions (6) 3000 Regions Visited (19) 3800 Robots Destroyed (1043) 5215 Value Destroyed (56633) 56633 Prototype IDs (51) 1020 Alien Tech Used (1) 200 Bonus (40110) 40110 TOTAL SCORE: 109978 Bonus ------- Triggered High Security 2500 High Alert Combat Kills 30648 Follower Combat Kills 718 Network Hubs Disabled 400 Registered with UFD 300 Met Optimus in HQ 500 Met Data Miner 300 Met Warlord at Base 500 MAIN.C Attacked Warlord 500 Warlord Defense Kills 6516 Met R17 at Cetus 500 Friendly Fire -3272 Cogmind --------- Core Integrity 0/1600 Matter 11/1600 Energy 1850/1850 System Corruption 69% Temperature Cool (0) Movement Hovering (60) Location -4/Hub_04(d) Parts ------- > --- POWER (1) -------- Quantum Reactor > --- PROPULSION (3) --- Gravmag Array (fused) > --- UTILITY (16) ----- Advanced Power Amplifier Active Sensor Suite Advanced Salvage Targeting Computer Improved Target Analyzer Improved Target Analyzer Improved Armor Integrity Analyzer Improved Weapon Cycler ECM Suite Experimental Thermal Shield (fused) Improved Force Field > --- WEAPON (6) ------- HERF Cannon Heavy Gauss Cannon Heavy Autocannon > --- INVENTORY (64) --- Structural Scanner EM Shield Advanced Datajack Self-destruct Interrupter (50) Self-destruct Interrupter (50) Peak State ------------ > --- POWER ------------ Quantum Reactor > --- PROPULSION ------- Gravmag Array Combat Linear Gravjet > --- UTILITY ---------- Advanced Power Amplifier Structural Scanner Active Sensor Suite Advanced Salvage Targeting Computer Improved Target Analyzer Improved Target Analyzer Advanced Recoil Stabilizer Improved Weapon Cycler Experimental Phase Shifter Improved Medium Armor Plating Centrium Medium Armor Plating Centrium Medium Armor Plating Experimental Thermal Shield Improved Force Field > --- WEAPON ----------- HERF Cannon Compact HERF Cannon Heavy Assault Cannon Heavy Autocannon > --- INVENTORY -------- Light Nuclear Core Neutrino Core Reinforced Fission Core Light Quantum Reactor Improved Antigrav System Advanced Coolant Injector Reaction Control System Propulsion Shielding Improved Weapon Shielding Improved Shock Absorption System Improved Component Analysis Suite Long-range Proton Cannon Advanced Datajack Self-destruct Interrupter Self-destruct Interrupter [Rating: 184] Favorites ----------- Power Cold Fusion Reactor Engine Backup Power III Power Core Reinforced Fission Core Reactor Cold Fusion Reactor Propulsion Gravmag Array Wheel Wheel Hover Unit Gravmag Array Flight Unit Flight Unit Utility Hardened Heavy Armor Plating Device Active Sensor Suite Processor Armor Integrity Analyzer Hackware Improved Hacking Suite Protection Hardened Heavy Armor Plating Weapon Compact HERF Cannon Energy Gun High-powered Shock Rifle Energy Cannon Compact HERF Cannon Ballistic Gun Overtuned Coil Gun Ballistic Cannon Heavy Assault Cannon Launcher Mini Grenade Launcher Special Weapon Improved Remote Datajack Special Melee Weapon Improved Datajack Build | -11 -10 -10 -8 -8 -6 -6 -6 -6 -5 -5 -5 -5 -5 -4 -4 -4 -4 -4 -4 ------- Run | Yrd Mat Sub Rec Scr Fac Low Low Dat Pro Fac Upp Upp War Pro Fac Ext Cet Arc Hub Slots Evolved 22 | 4 . . 18 . . . . . . . . . . . . . . . . Power . | . . . . . . . . . . . . . . . . . . . . Propulsion 2 | 1 . . 1 . . . . . . . . . . . . . . . . Utility 15 | 3 . . 12 . . . . . . . . . . . . . . . . Weapon 5 | . . . 5 . . . . . . . . . . . . . . . . Parts Attached 167 | 6 6 2 20 24 35 1 3 6 1 17 3 . 3 . 11 8 5 3 13 Power 14 | 1 . . . . 4 . . . . 2 . . . . 2 3 2 . . Engine 1 | 1 . . . . . . . . . . . . . . . . . . . Core 7 | . . . . . 2 . . . . 2 . . . . 2 1 . . . Reactor 6 | . . . . . 2 . . . . . . . . . . 2 2 . . Propulsion 12 | 2 2 . . . 4 . 1 . . 1 . . 1 . 1 . . . . Treads . | . . . . . . . . . . . . . . . . . . . . Leg . | . . . . . . . . . . . . . . . . . . . . Wheel 2 | 2 . . . . . . . . . . . . . . . . . . . Hover 6 | . . . . . 2 . 1 . . 1 . . 1 . 1 . . . . Flight 4 | . 2 . . . 2 . . . . . . . . . . . . . . Utility 79 | 2 2 2 11 8 14 . 1 3 . 5 2 . 1 . 6 5 3 3 11 Device 37 | 2 1 1 1 1 9 . 1 3 . 1 1 . 1 . 6 . . 2 7 Storage . | . . . . . . . . . . . . . . . . . . . . Processor 14 | . 1 . 1 2 2 . . . . 2 1 . . . . 2 1 . 2 Hackware 2 | . . . 1 . . . . . . . . . . . . . . 1 . Protection 26 | . . 1 8 5 3 . . . . 2 . . . . . 3 2 . 2 Artifact . | . . . . . . . . . . . . . . . . . . . . Weapon 62 | 1 2 . 9 16 13 1 1 3 1 9 1 . 1 . 2 . . . 2 Energy Gun 11 | 1 . . 4 5 1 . . . . . . . . . . . . . . Energy Cannon 17 | . . . . . 5 . . 3 . 6 1 . . . 1 . . . 1 Ballistic Gun 15 | . . . 3 8 2 . 1 . . 1 . . . . . . . . . Ballistic Cannon 12 | . . . 2 1 4 1 . . 1 . . . 1 . 1 . . . 1 Launcher 4 | . 2 . . 2 . . . . . . . . . . . . . . . Special Weapon 1 | . . . . . . . . . . 1 . . . . . . . . . Impact Weapon . | . . . . . . . . . . . . . . . . . . . . Slashing Weapon . | . . . . . . . . . . . . . . . . . . . . Piercing Weapon . | . . . . . . . . . . . . . . . . . . . . Special Melee Weapon 2 | . . . . . 1 . . . . 1 . . . . . . . . . Unidentified Prototypes 17 | . . . . 1 7 . 1 2 . 1 . . 1 . . . 1 . 3 Corrupted Parts 6 | . . . . . 2 . . 3 . . . . . . . . . . 1 System Corruption 23 | . . . . . 7 . . 6 . . . . . . . . . . 10 Parts Lost 15 | . . 1 2 . 2 . . . . . . . . . . 3 1 . 6 Power 2 | . . . . . 1 . . . . . . . . . . . 1 . . Propulsion . | . . . . . . . . . . . . . . . . . . . . Utility 10 | . . 1 1 . . . . . . . . . . . . 3 . . 5 Weapon 3 | . . . 1 . 1 . . . . . . . . . . . . . 1 Highest Loss Streak 3 | . . 1 1 . 1 . . . . . . . . . . 2 1 . 3 To Critical Strikes 2 | . . . . . . . . . . . . . . . . . 1 . 1 Average Backups 1 | . . . . . . . . . . . . . . 1 4 7 10 11 7 Power . | . . . . . . . . . . . . . . . . 1 3 4 2 Propulsion . | . . . . . . . . . . . . . . . . 1 1 1 . Utility . | . . . . . . . . . . . . . . . 2 4 5 5 3 Weapon . | . . . . . . . . . . . . . . 1 1 1 1 1 . Tool/Special . | . . . . . . . . . . . . . . . . . . . . Unused Backups 1 | . . . . . . . . . . . . . . . . . . . 1 Power . | . . . . . . . . . . . . . . . . . . . . Propulsion . | . . . . . . . . . . . . . . . . . . . . Utility . | . . . . . . . . . . . . . . . . . . . . Weapon . | . . . . . . . . . . . . . . . . . . . . Tool/Special 1 | . . . . . . . . . . . . . . . . . . . 1 Average Slot Usage (%) 72 | . 97 91 65 94 78 73 73 71 73 69 71 70 71 69 68 65 67 73 72 Reactor 1 | . . . . . 1 3 3 3 3 1 . . . . . . 2 3 2 Hover 6 | . . . . . 4 7 7 7 7 7 7 7 7 7 7 7 7 7 6 Flight 1 | . 2 25 15 7 1 . . . . . . . . . . . . . . Device 20 | . 36 29 20 14 24 26 26 25 26 19 18 19 19 19 18 17 14 17 21 Processor 7 | . 11 4 3 6 4 3 3 3 3 6 9 11 11 11 11 9 11 11 11 Protection 12 | . . 6 2 37 16 11 11 11 11 11 11 11 11 11 11 10 13 15 12 Energy Cannon 7 | . . . . . 9 11 11 11 11 7 7 11 10 3 6 7 7 7 6 Ballistic Cannon 6 | . . . . 3 4 7 6 3 6 6 7 7 7 11 7 7 7 7 7 Peak Build Rating 184 | 8 11 13 40 78 133 132 132 137 139 147 147 147 150 150 163 162 166 178 184 Average Rating 133 | 4 10 12 15 69 114 131 131 131 138 139 144 143 142 150 157 156 160 169 167 On Entrance 108 | . 8 11 9 40 78 132 132 130 137 139 136 147 141 150 150 162 144 163 163 Naked Turns . | . . . . . . . . . . . . . . . . . . . . Heaviest Build 165 | 7 9 24 60 86 129 130 130 127 132 132 135 135 135 135 165 161 132 136 139 Greatest Support 180 | 20 20 8 88 88 109 109 111 111 111 111 111 111 114 114 114 114 114 114 180 Greatest Overweight (x) 2 | . 2 2 . . 1 1 1 1 1 1 1 1 1 1 1 1 1 1 1 Average Overweight (x) . | . . . . . . . 1 1 1 1 1 1 . 1 1 . . 1 . Largest Inventory Capacity 64 | . . . . . . . . . . . . . 64 64 64 64 64 64 64 Average Capacity 21 | . . . . . . . . . . . . . 39 64 64 64 64 64 64 Most Carried 16 | . . . . . . . . . . . . . 4 3 10 12 13 14 16 Average Carried 2 | . . . . . . . . . . . . . . 3 6 9 12 13 9 Final Capacity 64 | . . . . . . . . . . . . . 64 64 64 64 64 64 64 Final Carried 14 | . . . . . . . . . . . . . 3 3 9 12 13 14 5 Class Distribution -------------------- 84% | Wizard-Executioner 9% | Wizard-Scout Dominant Class ---------------- Mutant | -10/Materials Scavenger-Mutant | -10/Subcaves Scavenger-Mutant | -8/Recycling Wizard-Scout | -8/Scraptown Wizard-Executioner | -6/Factory Wizard-Executioner | -6/Lower Caves Wizard-Executioner | -6/Lower Caves Wizard-Executioner | -6/Data Miner Wizard-Executioner | -5/Proximity Caves Wizard-Executioner | -5/Factory Wizard-Executioner | -5/Upper Caves Wizard-Executioner | -5/Upper Caves Wizard-Executioner | -5/Warlord Wizard-Executioner | -4/Proximity Caves Wizard-Executioner | -4/Factory Wizard-Executioner | -4/Extension Wizard-Executioner | -4/Cetus Wizard-Executioner | -4/Archives Wizard-Executioner | -4/Hub_04(d) Resources | -11 -10 -10 -8 -8 -6 -6 -6 -6 -5 -5 -5 -5 -5 -4 -4 -4 -4 -4 -4 ----------- Run | Yrd Mat Sub Rec Scr Fac Low Low Dat Pro Fac Upp Upp War Pro Fac Ext Cet Arc Hub Matter Collected 30600 | 260 307 90 734 2320 3508 580 808 201 342 4430 541 291 1141 679 4080 5382 477 470 3959 Remotely . | . . . . . . . . . . . . . . . . . . . . Salvage Created 46593 | 204 186 . 685 2651 7647 740 1455 408 525 7772 1022 675 2249 591 4575 9407 452 489 4860 Parts 1880 | 14 11 10 22 154 276 39 43 12 36 340 33 14 97 22 223 273 21 32 208 Haulers Intercepted 3 | . . . . . 2 . . . . . . . . . . . . . 1 Recyclers Shooed 10 | . 1 . 5 . 1 . . . . 3 . . . . . . . . . Parts Field Recycled . | . . . . . . . . . . . . . . . . . . . . Retrieved Matter . | . . . . . . . . . . . . . . . . . . . . Parts Self-Destructed 134 | . . 8 . . . 19 23 . 33 . 25 7 . 19 . . . . . Prevented 42 | . . . . . . 14 13 . 3 . 5 3 . 4 . . . . . Kills | -11 -10 -10 -8 -8 -6 -6 -6 -6 -5 -5 -5 -5 -5 -4 -4 -4 -4 -4 -4 ------- Run | Yrd Mat Sub Rec Scr Fac Low Low Dat Pro Fac Upp Upp War Pro Fac Ext Cet Arc Hub Combat Hostiles Destroyed 917 | . 4 6 13 64 152 19 21 4 19 148 17 6 56 15 101 166 14 4 88 Guns 28 | . . . 1 20 7 . . . . . . . . . . . . . . Cannons 770 | . . . . 44 125 17 18 4 17 133 17 5 44 15 91 145 10 3 82 AOE 45 | . 4 6 12 . 7 1 3 . . 3 . . 4 . . 4 . 1 . Classes Destroyed 35 | 2 3 2 4 8 10 . 2 . . . . . 3 . . . . . 1 Worker 41 | . 1 . 1 . 9 . . . . 8 . . . . 7 . . . 15 Builder 20 | . 1 . 2 . 4 . . . . 4 . . . . 5 2 . . 2 Tunneler 12 | 5 . . 1 . 3 . . . . 1 . . . . 2 . . . . Hauler 3 | . . . . . 2 . . . . . . . . . . . . . 1 Recycler 18 | 1 1 . 4 . 4 . . . . 5 . . . . 1 1 . . 1 Carrier 4 | . . . . . 2 . . . . 1 . . . . . 1 . . . Mechanic 8 | . . . . . 3 . . . . 1 . . 1 . 2 1 . . . Operator 21 | . . . . . 3 . . . . 4 . . . . 1 1 . 9 3 Watcher 28 | . . . . . 6 . . . . 7 . . . . 5 3 2 . 5 Swarmer 54 | . . 2 . . 6 2 2 . 6 2 5 1 5 8 . 13 . . 2 Cutter 3 | . . . . . . . . . . . . . . . . . . . 3 Saboteur 28 | . . . . . 6 . . . . 5 . . 5 . 5 5 . . 2 Grunt 371 | . 4 . 4 . 71 12 9 . 10 82 5 2 21 4 53 63 4 . 27 Brawler 35 | . . . . . 11 . 3 . . 5 2 . 1 . 7 5 . . 1 Duelist 47 | . . . 3 . 8 2 1 . . 13 1 . 2 . 4 11 . . 2 Protector 17 | . . . . . 5 . 1 . . 1 . . 3 . . 4 . . 3 Researcher 1 | . . . . . . . 1 . . . . . . . . . . . . Sentry 68 | . . . 4 . 2 2 1 . 1 10 2 1 . 1 3 21 . 4 16 Demolisher 1 | . . . 1 . . . . . . . . . . . . . . . . Specialist 4 | . . . . . . . . . . . . . 2 . . . . . 2 Hunter 78 | . . . 1 . 20 . 2 . . 13 . 1 7 . 9 13 2 . 10 Programmer 87 | . . . . . 21 1 . . 2 16 2 . 4 1 16 11 . . 13 Heavy 6 | . . . . . 1 . . . . 1 . . . . 3 . . . 1 Behemoth 7 | . . . . . 1 . 1 . . . . 1 . 1 1 2 . . . Cetus Guard 8 | . . . . . . . . . . . . . . . . . 8 . . Enhanced Grunt 4 | . . . . . . . . 4 . . . . . . . . . . . Lightning 6 | . . . . . . . . . . . . . . . . . . . 6 Striker 3 | . . . . . . . . . . . . . 3 . . . . . . Executioner 3 | . . . . . . . . . . . . . 3 . . . . . . Subdweller 4 | . . 4 . . . . . . . . . . . . . . . . . Bolteater 2 | . . . . 2 . . . . . . . . . . . . . . . Federalist 9 | . . . . 9 . . . . . . . . . . . . . . . Explorer 4 | . . . . 4 . . . . . . . . . . . . . . . Ranger 7 | . . . . 7 . . . . . . . . . . . . . . . Guru 3 | . . . . 3 . . . . . . . . . . . . . . . Scrapper 35 | . . . . 35 . . . . . . . . . . . . . . . Packrat 1 | . . . . . . . . . . . 1 . . . . . . . . Tinkerer 1 | . . . . 1 . . . . . . . . . . . . . . . Thug 11 | . . . . 1 . 1 . . . . . . . . . 9 . . . Savage 5 | . . . . 1 . . . . . . 1 1 . . . 2 . . . Butcher 3 | . . . . 2 . . . . . . . . . . . 1 . . . Guerrilla 7 | . . . . . . 1 . . . . . . . . . 6 . . . Mutant 1 | . . . . . . . 1 . . . . . . . . . . . . Commander 1 | . . . . . . 1 . . . . . . . . . . . . . Best Kill Streak 41 | 4 4 2 18 19 41 9 5 2 8 13 5 4 16 5 29 37 9 4 17 Combat Bots Only 39 | . 3 2 8 19 39 9 5 2 8 12 5 4 15 5 15 37 8 3 15 Max Kills in Single Turn 5 | 1 2 1 4 3 4 2 2 1 2 4 2 1 3 2 3 5 1 2 4 Gunslinging . | . . . . . . . . . . . . . . . . . . . . Exploded 4 | . 1 1 3 . 2 1 2 . . 1 . . 1 . . 4 . 1 . Melee . | . . . . . . . . . . . . . . . . . . . . Uniques/NPCs Destroyed 1 | . . . . . . . . . . . . . . . . . 1 . . Revision 17 (-4/Cetus) Combat | -11 -10 -10 -8 -8 -6 -6 -6 -6 -5 -5 -5 -5 -5 -4 -4 -4 -4 -4 -4 -------- Run | Yrd Mat Sub Rec Scr Fac Low Low Dat Pro Fac Upp Upp War Pro Fac Ext Cet Arc Hub Hostile Shots Fired 4087 | . 17 25 27 195 652 53 53 10 83 680 30 22 387 55 594 554 90 23 537 Missed 1517 | . 9 8 9 86 205 20 29 3 32 242 15 9 160 19 241 204 33 8 185 Hits 2570 | . 8 17 18 109 447 33 24 7 51 438 15 13 227 36 353 350 57 15 352 Melee 51 | . . . . 2 6 . . . . 9 . . . . 11 13 . . 10 Projectile 2519 | . 8 17 18 107 441 33 24 7 51 429 15 13 227 36 342 337 57 15 342 AOE 2 | . . . . . 1 . . . . . . . . . . . . . 1 Critical Strikes 119 | . . . . 6 17 2 . . 3 14 . 1 9 . 18 11 7 . 31 Part Disruptions 6 | . . . . . . . . . . . . . 1 . . . . . 5 Damage Taken 24373 | . 144 389 403 1466 3625 223 150 128 344 3395 246 224 2710 354 2828 2722 565 170 4287 Core 13414 | . 111 246 345 810 1825 112 69 78 173 1736 121 126 1493 187 1471 1398 320 108 2685 Absorbed by Shields 18077 | . . . . . 2422 233 159 129 361 3413 29 82 1012 134 2782 2785 590 178 3768 Redirected to Core 12037 | . 99 170 196 713 1668 99 69 78 167 1622 99 105 1308 158 1387 1325 320 99 2355 Redirected to Shielding 12 | . . . . 12 . . . . . . . . . . . . . . . Ignored by Resistances 10990 | . . . 34 386 1322 118 80 67 219 2234 65 85 1092 152 1585 1740 312 136 1363 Core Remaining (%) 96 | 100 . . . 86 . . . . 100 . . . . 100 . . . . . Volleys Fired 1492 | 18 26 14 33 104 225 31 46 10 29 251 26 13 60 19 162 186 45 18 176 Largest 6 | 1 1 1 6 5 6 5 5 5 5 5 4 5 5 4 4 4 4 4 4 Hottest 385 | 50 30 30 216 277 353 357 357 342 371 385 272 370 370 267 308 308 308 308 308 Shots Fired 5688 | 18 26 14 46 296 1087 151 194 40 139 1032 104 69 270 78 620 721 133 71 579 Gun 380 | 18 . . 9 192 138 . . 10 13 . . . . . . . . . . Cannon 5230 | . . . 4 104 949 151 194 30 126 1027 104 69 270 78 620 721 133 71 579 Launcher 73 | . 26 14 33 . . . . . . . . . . . . . . . . Special 5 | . . . . . . . . . . 5 . . . . . . . . . Kinetic 2730 | . . . 6 166 446 62 86 20 53 488 50 27 123 58 323 366 84 35 337 Thermal 494 | 18 . . 1 26 202 29 37 7 57 64 . 15 38 . . . . . . Explosive 73 | . 26 14 33 . . . . . . . . . . . . . . . . Electromagnetic 2386 | . . . 6 104 439 60 71 13 29 475 54 27 109 20 297 355 49 36 242 Robot Hit Streak 106 | 9 7 6 17 43 42 26 16 10 21 78 40 30 76 32 69 106 15 30 61 Robot Miss Streak 3 | 2 1 3 . 3 3 1 3 2 2 1 1 1 1 1 1 1 1 . 1 Penetration Max 2 | . . . . 1 1 1 2 . . 1 . . 1 . 1 1 1 . 1 Secondary Targets . | . . . . . . . . . . . . . . . . . . . . Shots Hit Robots 3027 | 15 3 6 17 206 545 74 98 20 47 559 47 41 185 34 332 340 68 28 362 Core Hits 1662 | 7 12 7 45 195 311 38 43 15 27 279 31 15 76 13 138 223 22 12 153 Critical Kills 14 | . . . . . 6 1 4 . 2 . . . 1 . . . . . . Critical Parts Destroyed 11 | . . . . . 2 . 9 . . . . . . . . . . . . Critical Strikes 342 | . . . . 2 39 3 17 1 5 26 4 2 16 5 56 81 10 5 70 Burn 2 | . . . . 1 1 . . . . . . . . . . . . . . Meltdown 9 | . . . . . 6 . . . 2 . . . 1 . . . . . . Destroy 17 | . . . . . 2 1 14 . . . . . . . . . . . . Blast 254 | . . . . . 28 1 2 1 3 20 3 2 12 5 48 62 8 5 54 Corrupt 60 | . . . . 1 2 1 1 . . 6 1 . 3 . 8 19 2 . 16 Melee Attacks 2 | . . . . . 2 . . . . . . . . . . . . . . Impact . | . . . . . . . . . . . . . . . . . . . . Slashing . | . . . . . . . . . . . . . . . . . . . . Piercing . | . . . . . . . . . . . . . . . . . . . . Sneak Attacks 2 | . . . . . 2 . . . . . . . . . . . . . . Combat Hostiles . | . . . . . . . . . . . . . . . . . . . . Follow-up Attacks . | . . . . . . . . . . . . . . . . . . . . Damage Inflicted 174638 | 202 549 669 1995 5328 26747 3706 3822 973 2462 26559 2441 1603 10054 2322 23596 30398 4666 1974 24572 Guns 4399 | 202 . . 62 2496 1319 . . 187 133 . . . . . . . . . . Cannons 158710 | . . . 25 2832 23686 3602 3527 786 2329 24796 2374 1546 9604 2322 22692 28479 4666 1841 23603 Explosions 11203 | . 535 669 1908 . 1742 104 295 . . 1661 67 57 450 . 835 1829 . 133 918 Melee . | . . . . . . . . . . . . . . . . . . . . Ramming 326 | . 14 . . . . . . . . 102 . . . . 69 90 . . 51 Kinetic 110395 | . . . 43 3891 12273 1696 1673 614 861 14258 1479 587 5369 2182 18468 21845 3989 1608 19559 Thermal 18090 | 202 . . 18 645 6048 883 932 185 1305 2957 67 455 1797 . 706 1757 . 133 . Explosive 4381 | . 535 669 1908 . 708 . . . . 432 . . . . 129 . . . . Electromagnetic 41446 | . . . 26 792 7718 1127 1217 174 296 8810 895 561 2888 140 4224 6706 677 233 4962 Impact . | . . . . . . . . . . . . . . . . . . . . Slashing . | . . . . . . . . . . . . . . . . . . . . Piercing . | . . . . . . . . . . . . . . . . . . . . Highest Corruption 69 | . . . . . 30 30 30 36 37 13 14 14 15 7 8 23 23 23 69 Average Corruption 16 | . . . . . 12 30 30 32 36 10 13 14 10 7 2 13 23 16 23 Corruption Purged 14 | . . . . . . . . . . . . . . . . . . 14 . Corruption Blocked . | . . . . . . . . . . . . . . . . . . . . Effects 1167 | . . . . . 157 77 96 19 78 181 77 58 53 46 29 110 41 28 117 Message Errors 231 | . . . . . 32 17 19 2 14 35 22 10 15 8 2 28 6 3 18 Matter Fused 251 | . . . . . 31 14 15 4 17 47 19 16 11 13 4 25 8 7 20 Heat Flow Errors 135 | . . . . . 11 10 12 1 15 20 7 9 7 8 4 12 1 3 15 Energy Discharges 104 | . . . . . 8 12 9 2 4 22 6 3 7 5 5 5 4 4 8 Parts Rejected 12 | . . . . . 2 . . 1 . 1 . 2 . . . 1 2 . 3 Parts Fused 11 | . . . . . 2 1 . . 4 1 1 1 1 . . . . . . Data Loss (minor) 111 | . . . . . 10 10 9 2 6 17 7 6 5 5 4 11 3 3 13 Data Loss (major) 40 | . . . . . 4 3 3 1 4 8 2 3 1 . 1 4 1 1 4 Misfires 65 | . . . . . 12 4 5 2 4 8 5 5 3 4 2 4 2 2 3 Alerts 32 | . . . . . 4 1 3 1 . 7 3 1 2 1 4 2 . 1 2 Misdirections 18 | . . . . . 3 . 1 1 . 1 . 1 . . . 1 3 1 6 Weapon Failures 157 | . . . . . 38 5 20 2 10 14 5 1 1 2 3 17 11 3 25 Overload Shots . | . . . . . . . . . . . . . . . . . . . . Overflow Damage 11533 | . 9 69 77 15 1156 293 135 . 201 1329 181 117 546 449 2836 1791 151 389 1789 Projectiles 10808 | . . . . 15 1008 256 135 . 201 1246 181 86 501 449 2742 1668 151 389 1780 Explosions 686 | . 9 69 77 . 148 37 . . . 58 . 31 45 . 94 109 . . 9 Melee 39 | . . . . . . . . . . 25 . . . . . 14 . . . Knockbacks 571 | . 1 . . 26 77 10 7 3 6 100 3 2 22 7 99 94 3 3 108 Impact 5 | . 1 . . . . . . . . 1 . . . . 2 1 . . . Kinetic 491 | . . . . 24 64 10 6 3 5 88 3 2 20 6 85 76 3 3 93 Secondary 75 | . . . . 2 13 . 1 . 1 11 . . 2 1 12 17 . . 15 Self-Inflicted Damage 1137 | . 14 33 144 . 132 . 28 . . 249 . 49 52 . 123 45 . 56 212 Shots 24 | . 1 1 6 . 5 . 1 . . 3 . 1 1 . 2 . . 1 2 Rammed 25 | . 5 . . . . . . . . 5 . . . . 4 3 . . 8 Targets Rammed 25 | . 5 . . . . . . . . 5 . . . . 4 3 . . 8 Kicked . | . . . . . . . . . . . . . . . . . . . . Crushed . | . . . . . . . . . . . . . . . . . . . . Highest Temperature 145 | 110 14 . 145 . . . . . . . . . . . . . . . . Average Temperature 44 | 42 7 . 57 . . . . . . . . . . . . . . . . Received Heat Transfer 5459 | . 66 30 63 972 848 77 32 . 103 1100 51 34 504 15 538 538 . 32 456 Siege Activations . | . . . . . . . . . . . . . . . . . . . . Martial Activations . | . . . . . . . . . . . . . . . . . . . . Shielding Activations . | . . . . . . . . . . . . . . . . . . . . Robots Disrupted 2 | . . . . . 2 . . . . . . . . . . . . . . Combat Hostiles 2 | . . . . . 2 . . . . . . . . . . . . . . Robots Corrupted 71 | . . . . . 9 2 . . . 13 . 1 7 . 11 18 4 . 6 Combat Hostiles 62 | . . . . . 7 1 . . . 12 . 1 7 . 10 14 4 . 6 Parts Fried 193 | . . . . 3 37 3 6 1 1 54 1 . 9 1 14 39 8 1 15 Impact Corruptions 22 | . . . . . 3 . . . . 3 . . 1 2 5 6 . . 2 Robots Melted 10 | . . . . . 6 . . . 2 1 . . 1 . . . . . . Combat Hostiles 9 | . . . . . 6 . . . 2 . . . 1 . . . . . . Parts Melted 45 | 1 . . . 17 11 . 3 . 5 3 . . 2 . 3 . . . . Heat Transferred 17175 | 592 . . 37 1016 6736 1050 1025 350 900 2169 . 550 1525 . 350 825 . 50 . Parts Sabotaged 6 | . . . . . . . . . . 1 . . . . . 1 . . 4 Parts Stolen 1 | . . . . 1 . . . . . . . . . . . . . . . Parts Stripped . | . . . . . . . . . . . . . . . . . . . . Power Chain Reactions 33 | . 1 . . . 8 1 3 . . 8 1 1 4 . 2 3 . 1 . Alert | -11 -10 -10 -8 -8 -6 -6 -6 -6 -5 -5 -5 -5 -5 -4 -4 -4 -4 -4 -4 ------- Run | Yrd Mat Sub Rec Scr Fac Low Low Dat Pro Fac Upp Upp War Pro Fac Ext Cet Arc Hub Maximum Alert Level 5 | . 1 . 3 . 5 . . . . 5 . . . . 5 5 5 4 5 Low Security (%) 14 | 100 65 . 14 . 30 . . . . 9 . . . . 5 . . . 16 Level 1 6 | . 34 . 36 . 5 . . . . 5 . . . . 9 2 . . . Level 2 9 | . . . 47 . 2 . . . . 11 . . . . 6 5 . . 20 Level 3 7 | . . . 1 . 4 . . . . 6 . . . . 3 8 . . 23 Level 4 12 | . . . . . 4 . . . . 3 . . . . 20 23 . 100 21 Level 5 16 | . . . . . 22 . . . . 12 . . . . 26 12 100 . 3 High Security 33 | . . . . . 30 . . . . 49 . . . . 27 47 . . 14 Max Security . | . . . . . . . . . . . . . . . . . . . . Sterilizations 3 | . . . . . 1 . . . . 1 . . . . . 1 . . . Peak Influence 5239 | 10 364 . 701 . 5239 . . . . 4750 . . . . 3306 4719 3039 1327 2295 Initial 2642 | . . . 46 . . . . . . . . . . . . 1619 2642 1203 424 Average 2004 | 2 156 . 441 . 1758 . . . . 2766 . . . . 1620 2384 2963 1271 979 Influence Increases 31552 | 30 568 115 864 . 6218 420 450 . 400 6883 385 150 1105 365 3849 4920 639 266 3925 Destroy 0b10 Robot/C 16920 | . 80 40 260 . 2980 380 380 . 380 2960 340 120 1040 300 2020 3580 280 80 1700 Destroy 0b10 Robot/NC 935 | 30 15 . 70 . 195 10 20 . . 155 15 10 20 15 115 60 10 45 150 Destroy Leader 2388 | . 20 . . . 506 30 50 . 20 504 30 20 . 50 360 386 20 . 392 Allied During Kill 209 | . . . . . . . . . . . . . . . . 209 . . . Successful Hack 29 | . 7 . 22 . . . . . . . . . . . . . . . . Disable Machine 4200 | . 285 . 300 . 1575 . . . . 1050 . . . . 345 45 105 105 390 Anti-Garrison Action 150 | . . . . . . . . . . . . . . . . . . . 150 Destroy Structure 2911 | . 161 . 212 . 562 . . . . 994 . . . . 194 220 24 36 508 Partial Spotted 15 | . . . . . . . . . . . . . . . . . . . 15 Lose Combat Pursuer 495 | . . 75 . . . . . . . 120 . . 45 . 15 120 . . 120 Active Sensor Use 3300 | . . . . . 400 . . . . 1100 . . . . 800 300 200 . 500 Influence Decreases 29287 | 30 244 342 293 668 979 2469 1137 2503 400 2133 2300 1030 2097 1328 543 3507 2349 2060 2875 Entered New Map 17501 | . . 156 51 668 . 1939 607 2503 . . 1758 540 1955 963 . 1687 2077 1806 791 Time Decay 7016 | 30 244 176 222 . 551 530 530 . 400 697 542 490 142 365 543 490 262 254 548 Lost Part 150 | . . 10 20 . 20 . . . . . . . . . . 30 10 . 60 Lost Ally 100 | . . . . . . . . . . . . . . . . 100 . . . Purge Threat 4520 | . . . . . 408 . . . . 1436 . . . . . 1200 . . 1476 Squads Dispatched 214 | . 2 . . . 48 . 1 . . 56 . . . . 39 35 2 . 31 Investigation 42 | . . . . . 5 . . . . 16 . . . . 8 6 2 . 5 Extermination 17 | . . . . . 4 . . . . 6 . . . . 3 . . . 4 Reinforcement 20 | . 2 . . . 1 . . . . 8 . . . . 3 2 . . 4 Assault 128 | . . . . . 37 . 1 . . 26 . . . . 25 27 . . 12 Garrison 7 | . . . . . 1 . . . . . . . . . . . . . 6 Intercept . | . . . . . . . . . . . . . . . . . . . . Searches Triggered . | . . . . . . . . . . . . . . . . . . . . Construction Impeded 5 | . . . . . . . . . . 2 . . . . 1 1 . . 1 Haulers Reinforced 2 | . . . . . 1 . . . . 1 . . . . . . . . . Active Scanning Responses 33 | . . . . . 4 . . . . 11 . . . . 8 3 2 . 5 Cargo Convoy Interrupts . | . . . . . . . . . . . . . . . . . . . . Stealth | -11 -10 -10 -8 -8 -6 -6 -6 -6 -5 -5 -5 -5 -5 -4 -4 -4 -4 -4 -4 --------- Run | Yrd Mat Sub Rec Scr Fac Low Low Dat Pro Fac Upp Upp War Pro Fac Ext Cet Arc Hub Distress Signals 13 | . . . . . 2 . . . . 4 . . 1 . 1 . 1 . 4 Communications Jammed 1 | . . . . . 1 . . . . . . . . . . . . . . Distress Signals . | . . . . . . . . . . . . . . . . . . . . Times Spotted 1233 | . 5 11 6 84 217 17 23 4 20 177 14 7 105 16 131 219 15 4 158 Peak Tracking Total 31 | . 3 2 5 8 12 9 5 3 7 11 5 3 19 4 15 31 5 3 22 Tactical Retreats 55 | . . 2 . 3 19 1 3 . 2 4 . . 2 . 1 7 . . 11 Traps | -11 -10 -10 -8 -8 -6 -6 -6 -6 -5 -5 -5 -5 -5 -4 -4 -4 -4 -4 -4 ------- Run | Yrd Mat Sub Rec Scr Fac Low Low Dat Pro Fac Upp Upp War Pro Fac Ext Cet Arc Hub Traps Triggered 18 | . . 2 . . 4 . . . . 3 1 1 1 . 3 3 . . . Indirectly . | . . . . . . . . . . . . . . . . . . . . Trap Hack Attempts . | . . . . . . . . . . . . . . . . . . . . Triggered . | . . . . . . . . . . . . . . . . . . . . Disarmed 12 | . . . . . . . . . . . . . . . . 12 . . . Reprogrammed 5 | . . . . . 3 . . . . . . . . . . . . . 2 Reused . | . . . . . . . . . . . . . . . . . . . . Traps Extracted . | . . . . . . . . . . . . . . . . . . . . Installed . | . . . . . . . . . . . . . . . . . . . . Triggered . | . . . . . . . . . . . . . . . . . . . . Machines | -11 -10 -10 -8 -8 -6 -6 -6 -6 -5 -5 -5 -5 -5 -4 -4 -4 -4 -4 -4 ---------- Run | Yrd Mat Sub Rec Scr Fac Low Low Dat Pro Fac Upp Upp War Pro Fac Ext Cet Arc Hub Machines Disabled 305 | . 19 1 20 2 105 5 3 1 5 70 1 . . 1 23 6 9 7 27 Max in Single Turn 12 | . 3 1 3 1 10 2 1 1 1 10 1 . . 1 4 2 3 2 12 Garrison Access 6 | . . . . . 3 . . . . 1 . . . . . . . . 2 Network Hub 2 | . . . . . . . . . . . . . . . . . . . 2 Machines Repaired . | . . . . . . . . . . . . . . . . . . . . Machines Dismantled . | . . . . . . . . . . . . . . . . . . . . Machines Sabotaged . | . . . . . . . . . . . . . . . . . . . . Overloaded Fab Kills . | . . . . . . . . . . . . . . . . . . . . Hacking | -11 -10 -10 -8 -8 -6 -6 -6 -6 -5 -5 -5 -5 -5 -4 -4 -4 -4 -4 -4 --------- Run | Yrd Mat Sub Rec Scr Fac Low Low Dat Pro Fac Upp Upp War Pro Fac Ext Cet Arc Hub Machines Accessed 76 | . 3 1 6 9 13 1 . 4 1 11 . 1 . 1 3 7 3 1 11 Terminals 51 | . 3 . 6 . 9 . . . 1 8 . . . 1 3 7 3 . 10 Fabricators 4 | . . . . . 1 . . . . 3 . . . . . . . . . Repair Stations . | . . . . . . . . . . . . . . . . . . . . Recycling Units . | . . . . . . . . . . . . . . . . . . . . Scanalyzers . | . . . . . . . . . . . . . . . . . . . . Garrison Access 4 | . . . . . 3 . . . . . . . . . . . . . 1 Total Hacks 531 | . 14 4 19 61 79 6 . 31 5 99 . 1 . 2 27 50 6 25 102 Successful 464 | . 8 4 10 61 73 6 . 31 5 73 . 1 . 2 27 45 6 25 87 Failed 65 | . 6 . 9 . 5 . . . . 26 . . . . . 5 . . 14 Catastrophic 18 | . . . 3 . . . . . . 10 . . . . . . . . 5 Database Lockouts 2 | . . . . . 1 . . . . . . . . . . . . . 1 Manual 48 | . . . . . 11 . . . . 15 . . . . 2 11 1 . 8 Terminals 392 | . 14 . 19 . 75 . . . 5 93 . . . 2 27 50 6 . 101 Fabricators 7 | . . . . . 1 . . . . 6 . . . . . . . . . Repair Stations . | . . . . . . . . . . . . . . . . . . . . Recycling Units . | . . . . . . . . . . . . . . . . . . . . Scanalyzers . | . . . . . . . . . . . . . . . . . . . . Garrison Access 4 | . . . . . 3 . . . . . . . . . . . . . 1 Terminal Hacks 453 | . 8 4 10 61 69 6 . 31 5 67 . 1 . 2 27 45 6 25 86 Record 184 | . 5 4 4 61 21 6 . 11 5 12 . . . 2 6 1 5 25 16 Part Schematic 36 | . . . 1 . 3 . . 13 . 8 . . . . 1 3 . . 7 Robot Schematic 9 | . . . . . . . . 4 . 2 . . . . 1 . . . 2 Robot Analysis 4 | . . . . . 2 . . . . . . . . . . . . . 2 Prototype ID Bank 15 | . . . 1 . 3 . . 3 . 4 . . . . . 1 . . 3 Open Door 4 | . . . . . . . . . . . . 1 . . . 2 1 . . Open DSF 3 | . . . . . 1 . . . . 1 . . . . 1 . . . . Level Access Points 6 | . . . . . . . . . . 2 . . . . 1 1 . . 2 Branch Access Points 7 | . . . . . 2 . . . . 2 . . . . 1 . . . 2 Emergency Access Points 6 | . . . . . 1 . . . . . . . . . . . . . 5 Machine Index 8 | . . . . . 2 . . . . 2 . . . . . 2 . . 2 Terminal Index 4 | . . . 1 . . . . . . 1 . . . . 1 . . . 1 Fabricator Index 1 | . . . . . . . . . . . . . . . . 1 . . . Repair Station Index 2 | . . . . . . . . . . . . . . . . 1 . . 1 Recycling Unit Index 1 | . . . . . . . . . . . . . . . . 1 . . . Scanalyzer Index 1 | . . . . . . . . . . . . . . . 1 . . . . Garrison Index 1 | . . . . . . . . . . 1 . . . . . . . . . Alert Level 11 | . 2 . 1 . 2 . . . . 1 . . . . . 2 . . 3 Unreport Threat 36 | . . . . . 6 . . . . 11 . . . . . 8 . . 11 Locate Traps 7 | . . . . . 1 . . . . 1 . . . . . 2 . . 3 Disarm Traps 4 | . . . . . . . . . . . . . . . . 3 . . 1 Reprogram Traps 3 | . . . . . 2 . . . . . . . . . . . . . 1 Dispatch Records 5 | . . . 1 . 2 . . . . 1 . . . . . . . . 1 Maintenance Status 2 | . . . . . . . . . . . . . . . 2 . . . . Security Status 4 | . . . 1 . . . . . . . . . . . 1 1 . . 1 Surveillance Status 7 | . . . . . 1 . . . . 1 . . . . 1 1 . . 3 Patrol Status 3 | . . . . . . . . . . . . . . . . 1 . . 2 Transport Status 2 | . . . . . . . . . . . . . . . 1 . . . 1 Investigation Status 3 | . . . . . . . . . . . . . . . 1 . . . 2 Reinforcement Status 4 | . . . . . 2 . . . . . . . . . 1 . . . 1 Assault Status 3 | . . . . . 2 . . . . 1 . . . . . . . . . Recall Investigation 11 | . . . . . 2 . . . . 3 . . . . 2 2 . . 2 Recall Extermination 6 | . . . . . 1 . . . . 2 . . . . 1 1 . . 1 Recall Reinforcements 13 | . . . . . 4 . . . . 2 . . . . 1 3 . . 3 Recall Assault 15 | . . . . . 4 . . . . 5 . . . . 1 2 . . 3 Hauler Manifests 4 | . . . . . 1 . . . . . . . . . . 2 . . 1 Registered Components 3 | . . . . . 1 . . . . 1 . . . . 1 . . . . Registered Prototypes 5 | . . . . . 1 . . . . 1 . . . . 1 1 . . 1 Zone Layout 10 | . 1 . . . 2 . . . . 2 . . . . . 3 . . 2 Fabricator Hacks 7 | . . . . . 1 . . . . 6 . . . . . . . . . Load Schematic 3 | . . . . . . . . . . 3 . . . . . . . . . Build 4 | . . . . . 1 . . . . 3 . . . . . . . . . Repair Station Hacks . | . . . . . . . . . . . . . . . . . . . . Recycling Unit Hacks . | . . . . . . . . . . . . . . . . . . . . Scanalyzer . | . . . . . . . . . . . . . . . . . . . . Garrison Access Hacks 4 | . . . . . 3 . . . . . . . . . . . . . 1 Seal Access 4 | . . . . . 3 . . . . . . . . . . . . . 1 Unauthorized Hacks . | . . . . . . . . . . . . . . . . . . . . Terminals . | . . . . . . . . . . . . . . . . . . . . Fabricators . | . . . . . . . . . . . . . . . . . . . . Repair Stations . | . . . . . . . . . . . . . . . . . . . . Recycling Units . | . . . . . . . . . . . . . . . . . . . . Scanalyzers . | . . . . . . . . . . . . . . . . . . . . Garrison Access . | . . . . . . . . . . . . . . . . . . . . Data Cores Recovered 6 | . . . . . 3 . . . . 1 . . . . 1 . . . 1 Used 1 | . . . . . 1 . . . . . . . . . . . . . . Hacking Detections 31 | . 3 . 4 . 5 . . . . 9 . . . . 1 4 1 . 4 Full Trace Events 9 | . . . 1 . . . . . . 5 . . . . . 3 . . . Feedback Events . | . . . . . . . . . . . . . . . . . . . . Feedback Blocked . | . . . . . . . . . . . . . . . . . . . . Robot Schematics Acquired 9 | . . . . . . . . 4 . 2 . . . . 1 . . . 2 Robots Built . | . . . . . . . . . . . . . . . . . . . . Authchips . | . . . . . . . . . . . . . . . . . . . . Time . | . . . . . . . . . . . . . . . . . . . . Total Robot Build Rating . | . . . . . . . . . . . . . . . . . . . . Part Schematics Acquired 36 | . . . 1 . 3 . . 13 . 8 . . . . 1 3 . . 7 Parts Built 6 | . . . . . 1 . . . . 5 . . . . . . . . . Authchips . | . . . . . . . . . . . . . . . . . . . . Time 292 | . . . . . 128 . . . . 164 . . . . . . . . . Total Part Build Rating 46 | . . . . . 8 . . . . 38 . . . . . . . . . Parts Repaired . | . . . . . . . . . . . . . . . . . . . . Time . | . . . . . . . . . . . . . . . . . . . . Parts Recycled . | . . . . . . . . . . . . . . . . . . . . Recycled Matter . | . . . . . . . . . . . . . . . . . . . . Retrieved Matter . | . . . . . . . . . . . . . . . . . . . . Retrieved Components . | . . . . . . . . . . . . . . . . . . . . Parts Scanalyzed . | . . . . . . . . . . . . . . . . . . . . Part Schematics Acquired . | . . . . . . . . . . . . . . . . . . . . Parts Damaged . | . . . . . . . . . . . . . . . . . . . . Bothacking | -11 -10 -10 -8 -8 -6 -6 -6 -6 -5 -5 -5 -5 -5 -4 -4 -4 -4 -4 -4 ------------ Run | Yrd Mat Sub Rec Scr Fac Low Low Dat Pro Fac Upp Upp War Pro Fac Ext Cet Arc Hub Used RIF Installer . | . . . . . . . . . . . . . . . . . . . . Robots Hacked 3 | . . . . . 2 . . . . 1 . . . . . . . . . Non-combat 2 | . . . . . 2 . . . . . . . . . . . . . . Combat . | . . . . . . . . . . . . . . . . . . . . Robot Hacks Applied 2 | . . . . . 2 . . . . . . . . . . . . . . no_distress 1 | . . . . . 1 . . . . . . . . . . . . . . find_recycling 1 | . . . . . 1 . . . . . . . . . . . . . . Manual 1 | . . . . . . . . . . 1 . . . . . . . . . Relay Couplers Released 3 | . . . . . . . . . . 1 . . . . . . . . 2 Machine Destruction 1 | . . . . . . . . . . 1 . . . . . . . . . Programmers 2 | . . . . . . . . . . . . . . . . . . . 2 Fabnet Peak Effective % . | . . . . . . . . . . . . . . . . . . . . Robots Rewired . | . . . . . . . . . . . . . . . . . . . . Allies Hacked . | . . . . . . . . . . . . . . . . . . . . Hacks Repelled . | . . . . . . . . . . . . . . . . . . . . Allies | -11 -10 -10 -8 -8 -6 -6 -6 -6 -5 -5 -5 -5 -5 -4 -4 -4 -4 -4 -4 -------- Run | Yrd Mat Sub Rec Scr Fac Low Low Dat Pro Fac Upp Upp War Pro Fac Ext Cet Arc Hub Total Allies 5 | . . . . . . . . . . . . . . . . 5 . . . Largest Group 3 | . . . . . . . . . . . . . . . . 3 . . . Highest-Rated Group 234 | . . . . . . . . . . . . . . . . 234 . . . Highest-Rated Ally 159 | . . . . . . . . . . . . . . . . 159 . . . Total Orders . | . . . . . . . . . . . . . . . . . . . . Ally Attacks 58 | . . . . . . . . . . . . . . . . 58 . . . Total Damage 3225 | . . . . . . . . . . . . . . . . 3225 . . . Kills 16 | . . . . . . . . . . . . . . . . 16 . . . Allies Corrupted 1 | . . . . . . . . . . . . . . . . 1 . . . Allies Melted 14 | . . . . 11 . . . . . . . . 2 . . 1 . . . Intel | -11 -10 -10 -8 -8 -6 -6 -6 -6 -5 -5 -5 -5 -5 -4 -4 -4 -4 -4 -4 ------- Run | Yrd Mat Sub Rec Scr Fac Low Low Dat Pro Fac Upp Upp War Pro Fac Ext Cet Arc Hub Active Infowar (turns) 31362 | 8 541 414 476 1392 3646 1492 1498 274 1331 6052 1556 1282 2122 1468 2214 2486 567 543 2000 Optics 17 | . . 2 . . . . . . . . . . . . . . 13 . 2 Sensors 11459 | . 505 165 . . 3378 1492 1498 274 1331 2816 . . . . . . . . . A.S.S. 27043 | . . . . . 2304 1492 1498 274 1331 5906 1556 1282 2122 1468 2214 2486 567 543 2000 Terrain 5909 | 8 541 414 476 1392 3078 . . . . . . . . . . . . . . Structural 634 | . . . . . . . . . . . . . . . . . . . 634 Seismic 3167 | 5 541 414 476 1392 339 . . . . . . . . . . . . . . Triangulation 1 | . . . . . . . . . . 1 . . . . . . . . . Jamming 2567 | . . . . 1221 1346 . . . . . . . . . . . . . . ECM 11140 | . . . 385 1392 3646 1492 1498 274 1331 655 . . . . . . . . 467 Robot Analysis Total 4 | . . . . . 2 . . . . . . . . . . . . . 2 Derelict Logs Recovered 13 | . . 2 . . . 2 1 . 3 . 1 2 . 2 . . . . . Drone Launches . | . . . . . . . . . . . . . . . . . . . . Drone Recoveries . | . . . . . . . . . . . . . . . . . . . . Exploration | -11 -10 -10 -8 -8 -6 -6 -6 -6 -5 -5 -5 -5 -5 -4 -4 -4 -4 -4 -4 ------------- Run | Yrd Mat Sub Rec Scr Fac Low Low Dat Pro Fac Upp Upp War Pro Fac Ext Cet Arc Hub Turns Passed 31436 | 82 541 414 476 1392 3646 1492 1498 274 1331 6052 1556 1282 2122 1468 2214 2486 567 543 2000 Spaces Moved 19977 | 31 642 482 946 2067 2308 1264 1206 195 1031 2201 1248 936 796 1037 840 1209 332 208 998 Core 4 | 1 2 . . . 1 . . . . . . . . . . . . . . Treads . | . . . . . . . . . . . . . . . . . . . . Legs . | . . . . . . . . . . . . . . . . . . . . Wheels 527 | 30 497 . . . . . . . . . . . . . . . . . . Hover 15271 | . . . . . 1770 1264 1206 195 1031 2201 1248 936 796 1037 840 1209 332 208 998 Flight 4175 | . 143 482 946 2067 537 . . . . . . . . . . . . . . Fastest Speed 37 | 50 37 37 37 37 37 51 101 111 111 110 111 111 56 131 111 56 56 131 56 Average Speed 95 | 79 70 70 37 37 79 100 101 111 111 110 111 111 111 131 130 103 117 131 124 Slowest Speed 197 | 80 150 197 37 37 117 101 111 111 111 111 111 111 131 131 131 131 131 131 131 Overloaded Moves . | . . . . . . . . . . . . . . . . . . . . Propulsion Burnouts . | . . . . . . . . . . . . . . . . . . . . Robots Hopped 4 | . 2 . 2 . . . . . . . . . . . . . . . . Potential Cave-ins 42 | . . . . . 3 3 . . . 24 . . 4 . . 8 . . . Cave-ins Triggered 1 | . . . . . . . . . . 1 . . . . . . . . . Exploration Rate (%) 75 | 4 93 34 95 90 47 93 91 83 99 50 93 97 67 96 14 95 94 97 84 Regions Visited 19 Branch Regions 15 Pre-discovered Areas 6 | . . . . . . 1 . 1 2 . 1 1 . . . . . . . Known Exits Taken 17 | . 1 . 1 1 1 1 1 1 1 1 1 1 1 1 1 1 1 1 . Unknown Exits Taken 2 | 1 . 1 . . . . . . . . . . . . . . . . . Scrap Searched 28 | . . 5 . 6 . 4 4 . 2 . 1 2 . 4 . . . . . Spaces Dug 282 | . . . . . 6 10 6 . 9 76 3 . . 3 . 5 . 2 162 Terrain Destroyed 2780 | . 183 119 216 7 657 50 82 2 46 625 34 29 44 38 99 129 10 23 387 Melee . | . . . . . . . . . . . . . . . . . . . . Projectile 839 | . . . 2 7 123 36 72 2 46 210 24 21 30 38 47 91 10 11 69 AOE 1941 | . 183 119 214 . 534 14 10 . . 415 10 8 14 . 52 38 . 12 318 Terrain Rammed . | . . . . . . . . . . . . . . . . . . . . Walls Destroyed . | . . . . . . . . . . . . . . . . . . . . Machines Disabled . | . . . . . . . . . . . . . . . . . . . . Actions | -11 -10 -10 -8 -8 -6 -6 -6 -6 -5 -5 -5 -5 -5 -4 -4 -4 -4 -4 -4 --------- Run | Yrd Mat Sub Rec Scr Fac Low Low Dat Pro Fac Upp Upp War Pro Fac Ext Cet Arc Hub Total 28629 | 67 699 535 1018 2513 3429 1380 1334 227 1117 5056 1339 1136 1847 1089 1561 2034 412 438 1398 Wait 5751 | 13 15 30 9 188 672 12 29 1 31 2418 14 181 893 20 426 491 1 199 108 Move 19949 | 30 637 481 941 2066 2307 1263 1205 194 1030 2199 1247 935 795 1036 839 1208 331 207 998 Hop 4 | . 2 . 2 . . . . . . . . . . . . . . . . Pick Up 4 | . . . . . . . . . . . . . 2 . . . . 1 1 Fast Attach 164 | 6 6 2 18 10 35 1 5 5 1 22 3 1 2 . 9 7 7 3 21 Attach 8 | . . . . . . . . . . . . . 3 . 2 . . . 3 Detach 32 | . . 1 . . 3 . . . . 2 . . 5 . 8 4 2 1 6 Swap 40 | . . . 2 17 8 1 . 2 . 3 . . 1 . 4 2 . . . Drop 127 | . 4 2 3 21 41 2 4 6 1 23 1 . 1 . 4 . . . 14 Fire 1492 | 18 26 14 33 104 225 31 46 10 29 251 26 13 60 19 162 186 45 18 176 Melee 2 | . . . . . 2 . . . . . . . . . . . . . . Ram 25 | . 5 . . . . . . . . 5 . . . . 4 3 . . 8 Kick . | . . . . . . . . . . . . . . . . . . . . Crush . | . . . . . . . . . . . . . . . . . . . . Escape Stasis 81 | . . . . . 54 . . . . 1 . . . . . 26 . . . Rewire . | . . . . . . . . . . . . . . . . . . . . Trap . | . . . . . . . . . . . . . . . . . . . . Miscellaneous 950 | . 4 5 10 107 82 70 45 9 25 132 48 6 85 14 103 107 26 9 63 Route ------- -11/Scrapyard -10/Materials (discovered 5 exits: *Mat x3 / *Min / *Sub) -10/Subcaves -8/Recycling (discovered 2 exits: *Fac / *Scr) -8/Scraptown (discovered 2 exits: *Fac x2) -6/Factory (discovered 5 exits: *Fac x3 / *Low x2) -6/Lower Caves -6/Lower Caves (discovered 2 exits: *Fac / *Dat) -6/Data Miner -5/Proximity Caves -5/Factory (discovered 6 exits: *Fac x4 / *Upp x2) -5/Upper Caves -5/Upper Caves (discovered 2 exits: *Fac / *War) -5/Warlord -4/Proximity Caves -4/Factory (discovered 8 exits: *Res x4 / Upp x2 / *Ext x2) -4/Extension (discovered 3 exits: *Res x2 / *Cet) -4/Cetus (discovered 3 exits: *Res x2 / *Arc) -4/Archives (discovered 3 exits: *Res / *Hub x2) -4/Hub_04(d) (discovered 4 exits: *Res x4) History --------- Turn | Location | Event 3 | -11/Scrapyard | Upgraded with Propulsion slot (x1) 3 | -11/Scrapyard | Upgraded with Utility slot (x3) 8 | -11/Scrapyard | Discovered new exit (range 16) 83 | -11/Scrapyard | Entered Materials 202 | -10/Materials | Discovered new exit (range 11) 237 | -10/Materials | Discovered new exit (range 16) 306 | -10/Materials | Build established: Mutant 320 | -10/Materials | Discovered new exit (range 15) 332 | -10/Materials | Identified exit to Materials 359 | -10/Materials | Discovered new exit (range 16) 450 | -10/Materials | Discovered exit to Materials (range 15) 455 | -10/Materials | Reached level 2 584 | -10/Materials | Identified exit to Mines 624 | -10/Materials | Identified exit to Subcaves 624 | -10/Materials | Entered Subcaves 626 | -10/Subcaves | Learned 4 Materials zone layouts 628 | -10/Subcaves | Learned Materials garrison access intel 637 | -10/Subcaves | Shifting Twisted Machinery released Sub. Optics 681 | -10/Subcaves | Visited Clippyterm 683 | -10/Subcaves | Learned Factory garrison access intel 701 | -10/Subcaves | Shifting Twisted Machinery released Flamer 709 | -10/Subcaves | Shifting Twisted Machinery released Shrapnel Trap 791 | -10/Subcaves | Disturbed a concealed Subdweller 1001 | -10/Subcaves | Discovered new exit (range 6) 1024 | -10/Subcaves | Reached level 3 1038 | -10/Subcaves | Entered Recycling 1088 | -8/Recycling | Reached level 4 1093 | -8/Recycling | Build established: Scavenger-Mutant 1134 | -8/Recycling | Upgraded with Utility slot (x1) 1134 | -8/Recycling | Upgraded with Weapon slot (x1) 1285 | -8/Recycling | Reached level 5 1287 | -8/Recycling | Core integrity fell below 50% 1295 | -8/Recycling | Upgraded with Propulsion slot (x1) 1295 | -8/Recycling | Upgraded with Utility slot (x11) 1295 | -8/Recycling | Upgraded with Weapon slot (x4) 1331 | -8/Recycling | Discovered new exit (range 11) 1336 | -8/Recycling | Destroyed 8 combat bots 1504 | -8/Recycling | Scanned before Scraplab entrance 1510 | -8/Recycling | Entered Scraplab 1512 | -8/Recycling | Discovered new exit (range 5) 1513 | -8/Recycling | Identified exit to Scraptown 1514 | -8/Recycling | Entered Scraptown 1516 | -8/Scraptown | Reached level 6 1596 | -8/Scraptown | Discovered new exit (range 16) 1600 | -8/Scraptown | Build established: Wizard-Scout 1609 | -8/Scraptown | Identified exit to Factory 1634 | -8/Scraptown | Visited Cave Peace 1658 | -8/Scraptown | Visited Bundlers 1697 | -8/Scraptown | Visited IN-MT5's Study 1712 | -8/Scraptown | Visited UFD Registry 1712 | -8/Scraptown | Registered with UFD as "Microtank" 1717 | -8/Scraptown | Visited Cyclists 1721 | -8/Scraptown | Entered Cyclist Reading Room 1849 | -8/Scraptown | Visited LU-1G1's Boring Crew 1868 | -8/Scraptown | Visited Junk Repository 1877 | -8/Scraptown | Visited Curators Association 1893 | -8/Scraptown | Visited Research Penetration Think Tank 1902 | -8/Scraptown | Visited Modified Component R&D 1907 | -8/Scraptown | Discovered exit to Factory (range 12) 1929 | -8/Scraptown | Visited Junk Repository 1953 | -8/Scraptown | Visited Derelict Rescue Squad 1963 | -8/Scraptown | Visited Junk Cannon Lab 1976 | -8/Scraptown | Visited Chapter 10 1982 | -8/Scraptown | Visited Abandonware Association 1985 | -8/Scraptown | Learned abandonware demo "TRNCOAT.EXE" 2188 | -8/Scraptown | Met Optimus 2188 | -8/Scraptown | Accepted into 0bPrime 2244 | -8/Scraptown | Civil war broke out across Scraptown 2303 | -8/Scraptown | Lost 8 allies 2412 | -8/Scraptown | Lost 5 allies 2524 | -8/Scraptown | Lost 5 allies 2612 | -8/Scraptown | Destroyed 15 combat bots 2694 | -8/Scraptown | Lost 5 allies 2729 | -8/Scraptown | Destroyed 11 combat bots 2894 | -8/Scraptown | Destroyed 19 combat bots 2906 | -8/Scraptown | Entered Factory 2907 | -6/Factory | Loaded intel: 4 garrison access locations 2908 | -6/Factory | Reached level 7 3421 | -6/Factory | Fabricated Com. HERF Cannon (x1) 3469 | -6/Factory | Reached level 8 3483 | -6/Factory | Discovered new exit (range 12) 3499 | -6/Factory | Identified exit to Factory 3526 | -6/Factory | Identified exit to Lower Caves 3545 | -6/Factory | Identified exit to DSF 3598 | -6/Factory | Discovered exit to Factory (range 21) 3676 | -6/Factory | Reached level 9 3740 | -6/Factory | Spotted B-75 Beast 3861 | -6/Factory | Destroyed B-75 Beast 4054 | -6/Factory | Build established: Wizard-Assassin 4134 | -6/Factory | Reached level 10 4221 | -6/Factory | Discovered exit to Factory (range 15) 4248 | -6/Factory | Found Corrupted Prototype Device 4248 | -6/Factory | Identified Active Sensor Suite 4260 | -6/Factory | System corruption reached 10% 4306 | -6/Factory | First assault squad dispatched 4318 | -6/Factory | Reached level 11 4457 | -6/Factory | Reached level 12 4495 | -6/Factory | Garrison activated, responded to threat 4547 | -6/Factory | Build established: Wizard-Executioner 4620 | -6/Factory | Reached level 13 4754 | -6/Factory | Reached level 14 5088 | -6/Factory | Reached level 15 5264 | -6/Factory | Central database locked down 5377 | -6/Factory | Reached level 16 5411 | -6/Factory | Destroyed 8 combat bots 5453 | -6/Factory | High security lockdown imminent 5533 | -6/Factory | High security lockdown engaged 5685 | -6/Factory | Reached level 17 5749 | -6/Factory | Destroyed 9 combat bots 5818 | -6/Factory | Destroyed 7 combat bots 5867 | -6/Factory | Reached level 18 6015 | -6/Factory | Destroyed 14 combat bots 6111 | -6/Factory | Reached level 19 6273 | -6/Factory | Reached level 20 6298 | -6/Factory | Destroyed 39 combat bots 6364 | -6/Factory | Sterilization system engaged 6364 | -6/Factory | Non-combat units ordered to evacuate 6448 | -6/Factory | Destroyed 19 combat bots 6464 | -6/Factory | Combat units ordered to evacuate 6468 | -6/Factory | Core integrity fell below 50% 6471 | -6/Factory | System corruption reached 30% 6509 | -6/Factory | Destroyed 13 combat bots 6552 | -6/Factory | Entered Lower Caves 6554 | -6/Lower Caves | Attracted the attention of an 0b10 outpost 6600 | -6/Lower Caves | Destroyed 9 combat bots 6649 | -6/Lower Caves | Learned Factory machine intel 6820 | -6/Lower Caves | Learned location of 1 exit from Proximity Caves 6989 | -6/Lower Caves | Reached level 21 7036 | -6/Lower Caves | Discovered new exit (range 7) 7041 | -6/Lower Caves | Identified exit to Lower Caves 7094 | -6/Lower Caves | Learned Extension terminal intel 7188 | -6/Lower Caves | Destroyed OP-G11(g) 8044 | -6/Lower Caves | Entered another Lower Caves area 8165 | -6/Lower Caves | Spotted B-75 Beast 8198 | -6/Lower Caves | Destroyed B-75 Beast 8461 | -6/Lower Caves | Discovered new exit (range 18) 8534 | -6/Lower Caves | Identified exit to Data Miner 8655 | -6/Lower Caves | Attracted the attention of an 0b10 outpost 8996 | -6/Lower Caves | Found Alien Artifact 8996 | -6/Lower Caves | Identified Core Expander 9150 | -6/Lower Caves | Discovered exit to Factory (range 12) 9183 | -6/Lower Caves | Attacked by a delusional Derelict stockpiling parts 9542 | -6/Lower Caves | Entered Data Miner 9542 | -6/Data Miner | Discovered new exit (range 6) 9546 | -6/Data Miner | Met Data Miner 9590 | -6/Data Miner | Learned location of Section 7 (-2) 9590 | -6/Data Miner | Acquired the access code to Warlord's prototype stash 9611 | -6/Data Miner | Received God Mode back door access code from Data Miner 9620 | -6/Data Miner | Data Conduit disabled 9682 | -6/Data Miner | Found Corrupted Prototype Device 9682 | -6/Data Miner | Identified Exp. Thermal Shield 9725 | -6/Data Miner | Identified exit to Proximity Caves 9816 | -6/Data Miner | Entered Proximity Caves 9893 | -5/Proximity Caves | Attracted the attention of an 0b10 base 9927 | -5/Proximity Caves | Destroyed 8 combat bots 9952 | -5/Proximity Caves | Learned 6 Upper Caves zone layouts 9952 | -5/Proximity Caves | Learned Research terminal intel 9952 | -5/Proximity Caves | Learned Armory garrison access intel 9956 | -5/Proximity Caves | Reached level 22 10229 | -5/Proximity Caves | Learned 8 Factory zone layouts 10524 | -5/Proximity Caves | Learned location of Armory (-3) 11147 | -5/Proximity Caves | Entered Factory 11149 | -5/Factory | Loaded intel: 260 machine locations 11239 | -5/Factory | Identified exit to Upper Caves 11239 | -5/Factory | Identified exit to Factory 11488 | -5/Factory | Fabricated Hvy. Armored Exoskeleton (x1) 11545 | -5/Factory | Reached level 23 12252 | -5/Factory | Destroyed 8 combat bots 12301 | -5/Factory | Fabricated Nova Cannon (x2) 12402 | -5/Factory | Destroyed 9 combat bots 13129 | -5/Factory | Reached level 24 13247 | -5/Factory | First assault squad dispatched 13316 | -5/Factory | Fabricated Quantum Capacitor? 13329 | -5/Factory | Destroyed 7 combat bots 13457 | -5/Factory | Crushed by falling debris 13565 | -5/Factory | Spotted B-75 Beast 13691 | -5/Factory | System corruption reached 10% 14197 | -5/Factory | High security lockdown imminent 14268 | -5/Factory | Destroyed 12 combat bots 14277 | -5/Factory | High security lockdown engaged 14310 | -5/Factory | Reached level 25 14870 | -5/Factory | Destroyed 12 combat bots 14879 | -5/Factory | Sterilization system engaged 14879 | -5/Factory | Non-combat units ordered to evacuate 14927 | -5/Factory | Destroyed 8 combat bots 14979 | -5/Factory | Combat units ordered to evacuate 15023 | -5/Factory | Destroyed 12 combat bots 15179 | -5/Factory | Ambient heat levels rising (+10) 15329 | -5/Factory | Ambient heat levels rising (+10) 15479 | -5/Factory | Ambient heat levels rising (+10) 15629 | -5/Factory | Ambient heat levels rising (+10) 15779 | -5/Factory | Ambient heat levels rising (+10) 15929 | -5/Factory | Ambient heat levels rising (+10) 16079 | -5/Factory | Ambient heat levels rising (+10) 16229 | -5/Factory | Ambient heat levels rising (+10) 16379 | -5/Factory | Ambient heat levels rising (+10) 16529 | -5/Factory | Ambient heat levels rising (+10) 16679 | -5/Factory | Ambient heat levels rising (+10) 16829 | -5/Factory | Ambient heat levels rising (+10) 16979 | -5/Factory | Ambient heat levels rising (+10) 17129 | -5/Factory | Ambient heat levels rising (+10) 17199 | -5/Factory | Entered Upper Caves 17422 | -5/Upper Caves | Attracted the attention of an 0b10 outpost 17947 | -5/Upper Caves | Discovered new exit (range 28) 17978 | -5/Upper Caves | Identified exit to Upper Caves 18186 | -5/Upper Caves | Entered a destroyed Warlord outpost 18755 | -5/Upper Caves | Entered another Upper Caves area 18761 | -5/Upper Caves | Learned Factory stockpile data 18823 | -5/Upper Caves | Spotted B-75 Beast 18851 | -5/Upper Caves | Destroyed B-75 Beast 18995 | -5/Upper Caves | Discovered new exit (range 12) 19006 | -5/Upper Caves | Identified exit to Warlord 19279 | -5/Upper Caves | Attracted the attention of an 0b10 checkpoint 19389 | -5/Upper Caves | Discovered exit to Factory (range 8) 20037 | -5/Upper Caves | Entered Warlord 20038 | -5/Warlord | Identified exit to Proximity Caves 20866 | -5/Warlord | System corruption cleaned by Quarantine Array 21037 | -5/Warlord | Rebuked by Warlord 21062 | -5/Warlord | Warlord's base attacked by MAIN.C 21394 | -5/Warlord | Spotted Executioner 21412 | -5/Warlord | Warlord forces counterattacked 21418 | -5/Warlord | Destroyed Executioner 21437 | -5/Warlord | Spotted Striker 21447 | -5/Warlord | Destroyed Striker 21481 | -5/Warlord | Destroyed 15 combat bots 21492 | -5/Warlord | Spotted Striker 21498 | -5/Warlord | Destroyed Striker 21503 | -5/Warlord | Reached level 26 21552 | -5/Warlord | Destroyed 12 combat bots 21564 | -5/Warlord | Spotted Striker 21608 | -5/Warlord | Lost 3 allies 21615 | -5/Warlord | Destroyed 7 combat bots 21662 | -5/Warlord | Spotted Executioner 21690 | -5/Warlord | Destroyed Executioner 21709 | -5/Warlord | Lost 4 allies 21711 | -5/Warlord | Destroyed 8 combat bots 21737 | -5/Warlord | Warlord base infiltrated, sounded retreat 21956 | -5/Warlord | Spotted Striker 22062 | -5/Warlord | Spotted Executioner 22062 | -5/Warlord | Spotted Striker 22062 | -5/Warlord | Spotted Striker 22078 | -5/Warlord | Destroyed Striker 22091 | -5/Warlord | Destroyed Executioner 22101 | -5/Warlord | Found Prototype Ballistic Cannon 22101 | -5/Warlord | Identified Hvy. Autocannon 22138 | -5/Warlord | Lost 16 allies 22159 | -5/Warlord | Entered Proximity Caves 22170 | -4/Proximity Caves | Attracted the attention of an 0b10 checkpoint 22437 | -4/Proximity Caves | Spotted B-86 Titan 22462 | -4/Proximity Caves | Destroyed B-86 Titan 22674 | -4/Proximity Caves | Learned Research stockpile data 22727 | -4/Proximity Caves | Discovered exit to Factory (range 21) 23627 | -4/Proximity Caves | Entered Factory 23676 | -4/Factory | Identified exit to DSF 23786 | -4/Factory | Identified exit to Upper Caves 23786 | -4/Factory | Identified exit to Extension 23786 | -4/Factory | Identified exit to Research 23963 | -4/Factory | Reached level 27 24123 | -4/Factory | Spotted B-86 Titan 24138 | -4/Factory | Destroyed 9 combat bots 24140 | -4/Factory | Destroyed B-86 Titan 24228 | -4/Factory | Destroyed 9 combat bots 24377 | -4/Factory | First assault squad dispatched 25231 | -4/Factory | High security lockdown imminent 25311 | -4/Factory | High security lockdown engaged 25434 | -4/Factory | Reached level 28 25504 | -4/Factory | Destroyed 15 combat bots 25670 | -4/Factory | Destroyed 9 combat bots 25741 | -4/Factory | Destroyed 7 combat bots 25841 | -4/Factory | Entered Extension 25842 | -4/Extension | Loaded intel: 13 terminal locations 25848 | -4/Extension | Destroyed 8 combat bots 26155 | -4/Extension | Destroyed 12 combat bots 26166 | -4/Extension | Disrupted transfer network 26591 | -4/Extension | First assault squad dispatched 26655 | -4/Extension | Spotted B-86 Titan 26789 | -4/Extension | Destroyed 11 combat bots 26866 | -4/Extension | Spotted B-86 Titan 27026 | -4/Extension | Rescued A7 27061 | -4/Extension | Rescued a captive Derelict 27062 | -4/Extension | Rescued a captive Derelict 27139 | -4/Extension | High security lockdown imminent 27219 | -4/Extension | High security lockdown engaged 27224 | -4/Extension | Reached level 29 27336 | -4/Extension | Destroyed 12 combat bots 27378 | -4/Extension | System corruption reached 10% 27437 | -4/Extension | Destroyed 14 combat bots 27495 | -4/Extension | Rescued a captive Derelict 27497 | -4/Extension | Rescued a captive Derelict 27563 | -4/Extension | Lost 3 allies 27604 | -4/Extension | Destroyed 19 combat bots 27619 | -4/Extension | Extracted ID and sensor layout for unrecognized location from A7's data core 27721 | -4/Extension | Sterilization system engaged 27721 | -4/Extension | Non-combat units ordered to evacuate 27792 | -4/Extension | Discovered new exit (range 9) 27798 | -4/Extension | Destroyed 37 combat bots 27821 | -4/Extension | Combat units ordered to evacuate 27988 | -4/Extension | Destroyed B-86 Titan 28002 | -4/Extension | Destroyed B-86 Titan 28021 | -4/Extension | Ambient heat levels rising (+10) 28171 | -4/Extension | Ambient heat levels rising (+10) 28281 | -4/Extension | Build established: Wizard-Scout 28321 | -4/Extension | Ambient heat levels rising (+10) 28326 | -4/Extension | Identified exit to Cetus 28327 | -4/Extension | Entered Cetus 28330 | -4/Cetus | Spotted Cetus Guard 28330 | -4/Cetus | Spotted Cetus Guard 28330 | -4/Cetus | Spotted Cetus Guard 28330 | -4/Cetus | Spotted Cetus Guard 28336 | -4/Cetus | Destroyed Cetus Guard 28345 | -4/Cetus | Destroyed Cetus Guard 28351 | -4/Cetus | Destroyed Cetus Guard 28355 | -4/Cetus | Destroyed Cetus Guard 28398 | -4/Cetus | Destroyed 8 combat bots 28436 | -4/Cetus | Discovered exit to Research (range 36) 28628 | -4/Cetus | Cetus Manufacturing Module disabled 28673 | -4/Cetus | Found a strange terminal 28686 | -4/Cetus | Build established: Wizard-Executioner 28700 | -4/Cetus | Discovered new exit (range 25) 28718 | -4/Cetus | Spotted Cetus Guard 28718 | -4/Cetus | Spotted Cetus Guard 28721 | -4/Cetus | Discovered exit to Research (range 32) 28740 | -4/Cetus | Identified exit to Archives 28752 | -4/Cetus | Spotted Cetus Guard 28752 | -4/Cetus | Spotted Cetus Guard 28780 | -4/Cetus | Destroyed Cetus Guard 28811 | -4/Cetus | Destroyed Cetus Guard 28820 | -4/Cetus | Destroyed Cetus Guard 28824 | -4/Cetus | Destroyed Cetus Guard 28834 | -4/Cetus | Met Revision 17 28834 | -4/Cetus | Murdered Revision 17 28894 | -4/Cetus | Entered Archives 28919 | -4/Archives | Discovered new exit (range 25) 28956 | -4/Archives | Unable to access archive contents 28969 | -4/Archives | Discovered exit to Research (range 17) 28976 | -4/Archives | Unable to access archive contents 28982 | -4/Archives | Discovered new exit (range 17) 28991 | -4/Archives | Unable to access archive contents 29004 | -4/Archives | Unable to access archive contents 29028 | -4/Archives | Unable to access archive contents 29162 | -4/Archives | Unable to access archive contents 29420 | -4/Archives | Identified exit to Hub_04(d) 29437 | -4/Archives | Entered Hub_04(d) 29473 | -4/Hub_04(d) | Garrison activated, responded to threat 29848 | -4/Hub_04(d) | Network Hub disabled 29935 | -4/Hub_04(d) | Reached level 30 29989 | -4/Hub_04(d) | Destroyed 8 combat bots 30181 | -4/Hub_04(d) | Disrupted transfer network 30183 | -4/Hub_04(d) | Spotted Lightning 30185 | -4/Hub_04(d) | Spotted Lightning 30185 | -4/Hub_04(d) | Spotted Lightning 30187 | -4/Hub_04(d) | First assault squad dispatched 30206 | -4/Hub_04(d) | Destroyed Lightning 30223 | -4/Hub_04(d) | Destroyed Lightning 30246 | -4/Hub_04(d) | Destroyed Lightning 30328 | -4/Hub_04(d) | Destroyed 10 combat bots 30357 | -4/Hub_04(d) | Found Prototype Device 30357 | -4/Hub_04(d) | Identified Exp. Phase Shifter 30428 | -4/Hub_04(d) | Central database locked down 30763 | -4/Hub_04(d) | Network Hub disabled 30853 | -4/Hub_04(d) | System corruption reached 30% 30927 | -4/Hub_04(d) | Garrison activated, responded to threat 30973 | -4/Hub_04(d) | Destroyed 10 combat bots 30994 | -4/Hub_04(d) | Spotted Lightning 30998 | -4/Hub_04(d) | Spotted Lightning 31000 | -4/Hub_04(d) | Spotted Lightning 31101 | -4/Hub_04(d) | Destroyed Lightning 31151 | -4/Hub_04(d) | High security lockdown imminent 31206 | -4/Hub_04(d) | Destroyed 15 combat bots 31231 | -4/Hub_04(d) | High security lockdown engaged 31321 | -4/Hub_04(d) | Destroyed Lightning 31338 | -4/Hub_04(d) | Core integrity fell below 50% 31365 | -4/Hub_04(d) | Destroyed 11 combat bots 31390 | -4/Hub_04(d) | Spotted Lightning 31390 | -4/Hub_04(d) | Spotted Lightning 31390 | -4/Hub_04(d) | Spotted Lightning 31407 | -4/Hub_04(d) | Destroyed Lightning 31431 | -4/Hub_04(d) | Core integrity fell below 20% 31437 | -4/Hub_04(d) | Destroyed by Lightning with EMDS Last Messages --------------- 31431_ Hvy. Assault Cannon destroyed. 31431_ Imp. Medium Armor Plating destroyed. 31431_ System corrupted by crushing effect (+1). 31431_ System corrupted by crushing effect (+2). 31431_ L-61 Swordsman knocked back. 31432_ Penetrated by EMDS Slug. 31433_ System corrupted: Matter fused (-6). 31433_ Centrium Medium Armor Plating severed. 31434_ EMDS Slug penetrates Wall. 31434_ Penetrated by EMDS Slug. 31435_ Acquired 4 matter. 31436_ EMDS Slug penetrates Wall. 31436_ Slammed into L-61 Swordsman. 31437_ Penetrated by EMDS Slug. [Achievement: 50k Club] [Achievement: This Is Interesting...] [Achievement: Magneto] [Achievement: Punisher] [Achievement: Rambo] [Achievement: Achiever] Map ----- +----------------------------------------------------+ | | | ?????????????????????????? | | ?????????????????????????? | | ?????????????????????????? | | ?????????????????????????? | | ?????????????????????????? | | ?????????????????????????? | | ?????????????????????????? | | ?????????????????????????? | | ?????????????????????????? | | ?????????????????????????? | | ?????????????????????????? | | ?????????????????????????? | | ?????????????????????????? | | ?????????????????????????? | | ?????????????????????????? | | ?????????????????????????? | | ?????????????????????????? | | ?????????????????????????? | | ?????????????????????????? | | ?????????????????????????? | | ?????????????????????????? | | ######???????????????????? | | # #?????#++#??????????? | | # !"#?????# #??????????? | | #@bg%#?????# #??????????? | | #l!ig###???# ############ | | # !h%/h#???# ## # | | # !g#g#??## ## = # | | #%* "#g####* # # | | # "#lb % g#g # | | # #mlb Hgl # | | ########l## " ! # | | ????????? ###### g g # | | ????????? #????#%gg # | | ??????????#????######""### | | ???????????????#]!!*/=^ | | ???????????###?#]!!=!%" " | | ???????????? [#==/!%! | | ???????????###=#*%!]= | | ???????????# "%!#!*!###"## | | ???????????###%%[ *! | | ?????????????#!!%*" = | | ???###########/#%!%*![ | | ???# [%[%# [[! | | ???# =#*# | | ???# " " " " " #!% | | ???# " " " " " %% % C | | ???# " " " " " | | ???# # ###"m## | +----------------------------------------------------+ Best States ------------- Heat Dissipation 1137 Energy Generation 106 Energy Capacity 1850 Matter Stores 1600 Matter Capacity 1600 Sight Range 36 Robot Scan Range 52 Terrain Scan Range 20 Terrain Scan Density 1610 ECM Strength 1 Jamming Range 12 Power Amplification 30 Armor Coverage 1800 Resistance: KI 20 Resistance: TH 30 Resistance: EX 20 Power Shielding 66 Propulsion Shielding 33 Weapon Cycling 20 Phase Shifting 20 Evasion (%) 73 Targeting Accuracy 6 Target Analysis 9 Armor Integrity Analysis 40 Recoil Reduction 6 Particle Charging 15 Salvage Targeting 3 Offensive Hacking 112 Defensive Hacking 100 Item Schematics ----------------- Imp. Trap Scanner | -8/Recycling | Hacked Launcher Loader | -6/Factory | Hacked Adv. Datajack | -6/Factory | Hacked Hvy. Siege Treads | -6/Factory | Hacked Combat Drone Bay | -6/Data Miner | Free Prc. Energy Filter | -6/Data Miner | Free Hvy. Gatling Laser | -6/Data Miner | Free Cld. Nuclear Pulse Thruster | -6/Data Miner | Free Lgt. Regenerative Plating | -6/Data Miner | Free Myomer Leg | -6/Data Miner | Free Adv. Target Analyzer | -6/Data Miner | Free Hvy. Gauss Cannon | -6/Data Miner | Free Quantum Capacitor | -6/Data Miner | Free Imp. System Guard | -6/Data Miner | Free Imp. Dynamic Insulation System | -6/Data Miner | Free Hvy. Armored Exoskeleton | -6/Data Miner | Free Adv. Point Defense System | -6/Data Miner | Free Matter Neutralizer | -5/Factory | Hacked Nova Cannon | -5/Factory | Hacked Adv. Cooling System | -5/Factory | Hacked Lgt. Neutrino Core | -5/Factory | Hacked Mic. Fission Core | -5/Factory | Hacked Adv. Focal Shield | -5/Factory | Hacked Adv. Trap Scanner | -5/Factory | Hacked Imp. Plasma Cutter | -5/Factory | Hacked Centrium Leg | -4/Factory | Hacked Com. HERF Cannon | -4/Extension | Hacked Imp. Force Field | -4/Extension | Hacked Enh. Quantum Rifle | -4/Extension | Hacked Hyb. Antimatter Reactor | -4/Hub_04(d) | Hacked Enh. Hardcell Cannon | -4/Hub_04(d) | Hacked Biometal Leg | -4/Hub_04(d) | Hacked Biometal Heavy Treads | -4/Hub_04(d) | Hacked Adv. Medium Treads | -4/Hub_04(d) | Hacked Adv. Heavy Siege Treads | -4/Hub_04(d) | Hacked Rnf. Quantum Reactor | -4/Hub_04(d) | Hacked Robot Schematics ------------------ G-50 Soldier | -6/Data Miner | Free S-27 Virus | -6/Data Miner | Free H-66 Slayer | -6/Data Miner | Free W-44 Eye | -6/Data Miner | Free Y-64 Sentinel | -5/Factory | Hacked Y-54 Guardian | -5/Factory | Hacked E-15 Imp | -4/Factory | Hacked L-61 Swordsman | -4/Hub_04(d) | Hacked R-06 Scavenger | -4/Hub_04(d) | Hacked Fabricated ------------ Com. HERF Cannon | x1 | -6/Factory | Preloaded Hvy. Armored Exoskeleton | x1 | -5/Factory Nova Cannon | x2 | -5/Factory Quantum Capacitor | x2 | -5/Factory Repaired ---------- Nothing Alien Tech Used ----------------- Core Expander Achievements -------------- 50k Club A Powerful Ally? Achiever Adventurer Alien Tech Boltbath Cannon Specialist Charge!!! Dramatic Entrance Equal Opportunity Bot Explorer Giant Slayer GoHome() Just What I Needed Knowing Is Half The Battle Left-hand Path Magneto Maximum Efficiency More Power To You Most Wanted Omniscient Cartographer Party Time Preemptive Strike Prolific Hacker Punisher Rambo Rockin' Loadout Shocking Conclusion Sniper System Compromised Tank This Is Interesting... Z1$+NX3F=JRE3_ZNQR l33t h4x0r root@ Challenges ------------ None RPGLIKE | -11 -10 -10 -8 -8 -6 -6 -6 -6 -5 -5 -5 -5 -5 -4 -4 -4 -4 -4 -4 --------- Run | Yrd Mat Sub Rec Scr Fac Low Low Dat Pro Fac Upp Upp War Pro Fac Ext Cet Arc Hub Levels Raised 29 | . 1 1 2 1 14 1 . . 1 3 . . 1 . 2 1 . . 1 XP Earned 46928 | 3000 1925 1200 3932 900 21516 570 421 105 1298 4755 256 131 788 639 2586 1943 227 99 637 XP Spent 1395800 | 2900 1500 . 660800 . . . . . 21000 . . . 520000 . . . . . 189600 Upgrades 528 | 4 3 . 429 . . . . . 12 . . . 64 . . . . . 16 Propulsion Slot 2 | 1 . . 1 . . . . . . . . . . . . . . . . Utility Slot 15 | 3 . . 12 . . . . . . . . . . . . . . . . Weapon Slot 5 | . . . 5 . . . . . . . . . . . . . . . . Core Integrity 20 | . . . 20 . . . . . . . . . . . . . . . . Heat Dissipation 181 | . . . 181 . . . . . . . . . . . . . . . . Energy Generation 15 | . . . 15 . . . . . . . . . . . . . . . . Energy Storage 30 | . . . 30 . . . . . . . . . . . . . . . . Matter Storage 26 | . . . 26 . . . . . . . . . . . . . . . . Mass Support 32 | . . . 16 . . . . . . . . . . . . . . . 16 Inventory Capacity 64 | . . . . . . . . . . . . . 64 . . . . . . Sight Range 16 | . . . 16 . . . . . . . . . . . . . . . . Sensor Range 16 | . . . 16 . . . . . . . . . . . . . . . . Terrain Scan Density 16 | . . . 16 . . . . . . . . . . . . . . . . Ranged Accuracy 20 | . 3 . 5 . . . . . 12 . . . . . . . . . . Melee Accuracy 6 | . . . 6 . . . . . . . . . . . . . . . . Hack Attack % 20 | . . . 20 . . . . . . . . . . . . . . . . Hack Defense % 20 | . . . 20 . . . . . . . . . . . . . . . . KI Resistance % 4 | . . . 4 . . . . . . . . . . . . . . . . TH Resistance % 4 | . . . 4 . . . . . . . . . . . . . . . . EX Resistance % 4 | . . . 4 . . . . . . . . . . . . . . . . KI Damage % 4 | . . . 4 . . . . . . . . . . . . . . . . TH Damage % 4 | . . . 4 . . . . . . . . . . . . . . . . EX Damage % 4 | . . . 4 . . . . . . . . . . . . . . . . Protomatter Created 15129 | . 53 87 160 1262 2533 576 358 64 333 2416 432 97 800 147 2034 2340 227 69 1141 Integrity Restored 20093 | . 82 105 204 2362 1777 1501 925 182 525 2642 995 119 1795 307 2161 2348 526 207 1330 Core 11810 | . 82 105 204 903 1262 893 69 78 173 1574 283 54 1565 187 786 1764 430 207 1191 Parts 8283 | . . . . 1459 515 608 856 104 352 1068 712 65 230 120 1375 584 96 . 139 Protomatter Decayed 15444 | . 61 66 27 12040 589 136 67 . 149 882 67 57 519 43 . 450 49 . 242 Game ------ Seed PlexusNuclearExpander Manual? 0 Play Time 10:04:12 Cumulative 22.2 hours Start 2025.05.23 @ 16:12:17 End 2025.05.23 @ 20:35:33 Sessions 1 Manual Loads 0 Difficulty Rogue Special Mode Winter2019/RPGLIKE Game No. 7 Rogue 7 Adventurer 0 Explorer 0 Win Type - Total 0 Types 0/0/0/0/0/0/0/0/0/0 Lore% 26 Gallery% 18 Achievement% 33 Wizard Run 0 Options --------- Layout 0 ASCII 0 Keyboard 0 Movement Mouse Keybinds 0 Fullscreen 2 Font 14/SmallcapsGlow Map View 36x27 Zoom Use 88% Tactical HUD 1 Map Filters NONE Filters NONE Steam 0 RUN: 7143adf3-b45e-4c20-a2fa-1594db2cad17